fUST/lending_fUST_20240218
["ID","MTS","AMOUNT","RATE_DAILY","PERIOD"]
[314344469,1708206645518,-4591.95,0.00031675,2]
[314344470,1708206645528,-4591.95,0.00031675,2]
[314344471,1708206645538,-4591.95,0.00031675,2]
[314344473,1708206645547,-4591.95,0.00031675,2]
[314344474,1708206645556,-4591.95,0.00031675,2]
[314344475,1708206645565,-4591.95,0.00031675,2]
[314344476,1708206645574,-4591.95,0.00031675,2]
[314344477,1708206645584,-4591.95,0.00031675,2]
[314344478,1708206645594,-4591.95,0.00031675,2]
[314344479,1708206645672,-245350.23672852,0.00031676,30]
[314344483,1708206732605,3300.0,0.000185,2]
[314344484,1708206858098,154.95351295,0.000176,2]
[314344522,1708207748104,-945.07461724,0.00020999,2]
[314344523,1708207748130,-119.46961845,0.00021,2]
[314344556,1708207831869,-601.97785253,0.000209,2]
[314344557,1708207831879,-56.22613597,0.00021,2]
[314344558,1708207831888,-3821.48328507,0.00022848,2]
[314344559,1708207831900,-1525.12973754,0.00022848,2]
[314344591,1708207837879,-1013.88146683,0.00022848,2]
[314344598,1708207837935,-1267.0424903,0.00022848,2]
[314344601,1708207837947,-17272.46302026,0.00022848,2]
[314344603,1708207837956,-951.4454003,0.00022981,2]
[314344605,1708207837965,-397.383211,0.00023216,2]
[314344606,1708207837974,-1689.7532898,0.00023353,2]
[314344608,1708207837984,-1095.5264036,0.00023489,2]
[314344610,1708207837993,-679.52722844,0.00024014,2]
[314344612,1708207838002,-1589.31384727,0.00024015,2]
[314344614,1708207838011,-182.98978463,0.000249,2]
[314344616,1708207838020,-29673.7375,0.00025,2]
[314344618,1708207838030,-1711.45496282,0.00025,2]
[314344620,1708207838039,-2550.97,0.00025122,3]
[314344623,1708207838048,-2125.81,0.00025122,3]
[314344624,1708207838057,-164.96,0.00025132,3]
[314344626,1708207838066,-494.9,0.00025132,3]
[314344629,1708207838075,-3673.4,0.00025132,3]
[314344630,1708207838084,-3061.16,0.00025132,3]
[314344632,1708207838094,-63741.99805782,0.00025142,2]
[314344635,1708207838103,-1026.94249396,0.00025142,2]
[314344637,1708207838112,-190.68566815,0.00025142,2]
[314344639,1708207838122,-630.04974482,0.00026501,2]
[314344640,1708207838131,-329.92,0.00026502,3]
[314344656,1708207838268,-895.11659579,0.00027306,2]
[314344658,1708207838283,-836.98622972,0.00027306,2]
[314344660,1708207838292,-331.17574475,0.00027306,2]
[314344662,1708207838301,-500.0,0.00027397,2]
[314344664,1708207838310,-500.0,0.00027397,2]
[314344666,1708207838319,-500.0,0.00027397,2]
[314344668,1708207838328,-500.0,0.00027397,2]
[314344670,1708207838337,-500.0,0.00027397,2]
[314344672,1708207838346,-500.0,0.00027397,2]
[314344674,1708207838355,-500.0,0.00027397,2]
[314344676,1708207838366,-503.5333913,0.00027397,2]
[314344678,1708207838375,-500.0,0.00027397,2]
[314344680,1708207838383,-500.0,0.00027397,2]
[314344682,1708207838392,-500.0,0.00027397,2]
[314344684,1708207838402,-500.0,0.00027397,2]
[314344685,1708207838410,-506.45631732,0.00027397,2]
[314344686,1708207838419,-517.44050524,0.00027397,2]
[314344687,1708207838428,-500.0,0.00027397,2]
[314344688,1708207838437,-506.26113959,0.00027397,2]
[314344689,1708207838447,-500.0,0.00027397,2]
[314344690,1708207838455,-500.0,0.00027397,2]
[314344691,1708207838464,-500.0,0.00027397,2]
[314344692,1708207838473,-500.0,0.00027397,2]
[314344693,1708207838481,-849.74,0.00027397,2]
[314344694,1708207838490,-500.0,0.00027397,2]
[314344695,1708207838498,-500.0,0.00027397,2]
[314344696,1708207838507,-500.0,0.00027397,2]
[314344697,1708207838516,-500.0,0.00027397,2]
[314344698,1708207838525,-809.39,0.00027397,2]
[314344699,1708207838534,-500.0,0.00027397,2]
[314344700,1708207838543,-500.0,0.00027397,2]
[314344701,1708207838551,-500.0,0.00027397,2]
[314344702,1708207838560,-500.0,0.00027397,2]
[314344703,1708207838569,-466.09670805,0.00027397,2]
[314344704,1708207838577,-500.0,0.00027397,2]
[314344705,1708207838586,-500.0,0.00027397,2]
[314344706,1708207838595,-518.6324567,0.00027397,2]
[314344708,1708207838604,-500.0,0.00027397,2]
[314344710,1708207838613,-500.0,0.00027397,2]
[314344712,1708207838622,-500.0,0.00027397,2]
[314344714,1708207838633,-213.58687764,0.00027397,2]
[314344716,1708207838642,-500.0,0.00027397,2]
[314344718,1708207838653,-500.0,0.00027397,2]
[314344720,1708207838662,-500.0,0.00027397,2]
[314344722,1708207838672,-506.1561853,0.00027397,2]
[314344724,1708207838682,-500.0,0.00027397,2]
[314344726,1708207838692,-500.0,0.00027397,2]
[314344728,1708207838701,-500.0,0.00027397,2]
[314344730,1708207838710,-1000.0,0.00027397,2]
[314344732,1708207838720,-500.0,0.00027397,2]
[314344734,1708207838729,-500.0,0.00027397,2]
[314344736,1708207838738,-503.1545323,0.00027397,2]
[314344738,1708207838748,-512.52,0.00027397,2]
[314344740,1708207838757,-500.0,0.00027397,2]
[314344742,1708207838767,-500.0,0.00027397,2]
[314344744,1708207838776,-500.0,0.00027397,2]
[314344746,1708207838785,-500.0,0.00027397,2]
[314344748,1708207838794,-3100.22,0.00027397,2]
[314344750,1708207838803,-409.31389661,0.00027397,2]
[314344752,1708207838812,-1099.02,0.00027397,2]
[314344754,1708207838821,-4380.24,0.00027397,2]
[314344756,1708207838830,-4876.39,0.00027397,2]
[314344758,1708207838840,-500.0,0.00027397,2]
[314344760,1708207838849,-500.0,0.00027397,2]
[314344762,1708207838857,-500.0,0.00027397,2]
[314344764,1708207838866,-500.0,0.00027397,2]
[314344766,1708207838876,-3135.63,0.00027397,2]
[314344768,1708207838885,-500.0,0.00027397,2]
[314344770,1708207838894,-500.0,0.00027397,2]
[314344772,1708207838903,-500.0,0.00027397,2]
[314344774,1708207838912,-521.77890812,0.00027397,2]
[314344776,1708207838921,-500.0,0.00027397,2]
[314344778,1708207838930,-500.0,0.00027397,2]
[314344780,1708207838939,-500.0,0.00027397,2]
[314344782,1708207838948,-500.0,0.00027397,2]
[314344784,1708207838958,-630.28434313,0.00027397,2]
[314344786,1708207838966,-546.42,0.00027397,2]
[314344788,1708207838976,-500.0,0.00027397,2]
[314344790,1708207838985,-500.0,0.00027397,2]
[314344792,1708207838995,-1047.16,0.00027397,2]
[314344794,1708207839003,-501.06074641,0.00027397,2]
[314344796,1708207839012,-1289.77,0.00027397,2]
[314344798,1708207839021,-500.0,0.00027397,2]
[314344800,1708207839031,-595.45940406,0.00027397,2]
[314344802,1708207839040,-500.0,0.00027397,2]
[314344804,1708207839049,-500.0,0.00027397,2]
[314344806,1708207839058,-500.0,0.00027397,2]
[314344808,1708207839067,-545.80339716,0.00027397,2]
[314344810,1708207839076,-500.0,0.00027397,2]
[314344812,1708207839084,-3328.4,0.00027397,2]
[314344814,1708207839093,-500.0,0.00027397,2]
[314344816,1708207839102,-3479.64,0.00027397,2]
[314344818,1708207839111,-500.0,0.00027397,2]
[314344820,1708207839120,-503.15360928,0.00027397,2]
[314344822,1708207839129,-469.50533681,0.00027397,2]
[314344824,1708207839138,-501.51354866,0.00027397,2]
[314344826,1708207839147,-998.43,0.00027397,2]
[314344828,1708207839160,-5443.88,0.00027397,2]
[314344830,1708207839168,-155.0,0.00027397,2]
[314344832,1708207839178,-540.63992941,0.00027397,2]
[314344834,1708207839187,-500.0,0.00027397,2]
[314344836,1708207839197,-505.9151369,0.00027397,2]
[314344838,1708207839206,-500.0,0.00027397,2]
[314344840,1708207839215,-516.6,0.00027397,2]
[314344842,1708207839225,-500.45,0.00027397,2]
[314344844,1708207839234,-508.99933292,0.00027397,2]
[314344846,1708207839245,-221.45173241,0.00027397,2]
[314344848,1708207839254,-500.0,0.00027397,2]
[314344850,1708207839263,-595.36,0.00027397,2]
[314344852,1708207839272,-1019.35,0.00027397,2]
[314344854,1708207839283,-503.86860364,0.00027397,2]
[314344856,1708207839292,-500.0,0.00027397,2]
[314344858,1708207839301,-593.35,0.00027397,2]
[314344860,1708207839311,-557.34,0.00027397,2]
[314344862,1708207839321,-506.99496205,0.00027397,2]
[314344864,1708207839330,-500.0,0.00027397,2]
[314344866,1708207839339,-503.66728469,0.00027397,2]
[314344868,1708207839348,-525.27731322,0.00027397,2]
[314344870,1708207839357,-505.65007809,0.00027397,2]
[314344872,1708207839367,-656.43,0.00027397,2]
[314344875,1708207839376,-504.32224582,0.00027397,2]
[314344877,1708207839385,-500.0,0.00027397,2]
[314344879,1708207839393,-541.41043922,0.00027397,2]
[314344881,1708207839402,-500.0,0.00027397,2]
[314344883,1708207839411,-513.90277996,0.00027397,2]
[314344885,1708207839420,-505.48477638,0.00027397,2]
[314344886,1708207839462,-500.0,0.00027397,2]
[314344887,1708207839471,-500.0,0.00027397,2]
[314344888,1708207839480,-841.0,0.00027397,2]
[314344889,1708207839490,-500.0,0.00027397,2]
[314344890,1708207839499,-29680.33152701,0.00027507,5]
[314344891,1708207839508,-500.0,0.00027534,2]
[314344892,1708207839517,-645.5992516,0.00027671,2]
[314344893,1708207839527,-500.0,0.00027671,2]
[314344894,1708207839536,-500.0,0.00027671,2]
[314344895,1708207839545,-617.51,0.00027671,2]
[314344896,1708207839554,-500.0,0.00027671,2]
[314344897,1708207839564,-521.01383545,0.00027671,2]
[314344898,1708207839572,-500.0,0.00027671,2]
[314344899,1708207839581,-500.0,0.00027671,2]
[314344900,1708207839590,-500.0,0.00027671,2]
[314344901,1708207839599,-153.44114852,0.00027671,2]
[314344902,1708207839609,-500.0,0.00027671,2]
[314344903,1708207839618,-500.0,0.00027671,2]
[314344904,1708207839628,-504.0187755,0.00027671,2]
[314344905,1708207839637,-849.74,0.00027671,2]
[314344906,1708207839646,-504.01055325,0.00027671,2]
[314344907,1708207839655,-500.0,0.00027671,2]
[314344908,1708207839664,-500.0,0.00027671,2]
[314344909,1708207839673,-500.0,0.00027671,2]
[314344910,1708207839682,-809.39,0.00027671,2]
[314344911,1708207839691,-180.24851023,0.00027671,2]
[314344912,1708207839700,-500.0,0.00027671,2]
[314344913,1708207839709,-311.36704535,0.00027671,2]
[314344915,1708207839719,-506.76238936,0.00027671,2]
[314344916,1708207839728,-500.0,0.00027671,2]
[314344918,1708207839737,-500.0,0.00027671,2]
[314344919,1708207839746,-500.0,0.00027671,2]
[314344920,1708207839756,-500.0,0.00027671,2]
[314344921,1708207839765,-500.0,0.00027671,2]
[314344922,1708207839775,-525.30971961,0.00027671,2]
[314344923,1708207839784,-1000.0,0.00027671,2]
[314344924,1708207839794,-512.52,0.00027671,2]
[314344925,1708207839803,-500.0,0.00027671,2]
[314344926,1708207839812,-500.0,0.00027671,2]
[314344927,1708207839822,-500.0,0.00027671,2]
[314344928,1708207839831,-500.0,0.00027671,2]
[314344929,1708207839840,-3100.22,0.00027671,2]
[314344930,1708207839850,-1099.02,0.00027671,2]
[314344931,1708207839859,-4380.24,0.00027671,2]
[314344932,1708207839869,-4876.39,0.00027671,2]
[314344933,1708207839878,-500.0,0.00027671,2]
[314344934,1708207839887,-500.0,0.00027671,2]
[314344935,1708207839896,-3135.63,0.00027671,2]
[314344936,1708207839905,-500.0,0.00027671,2]
[314344937,1708207839915,-500.0,0.00027671,2]
[314344938,1708207839924,-500.0,0.00027671,2]
[314344939,1708207839933,-500.0,0.00027671,2]
[314344940,1708207839943,-472.3,0.00027671,2]
[314344941,1708207839952,-500.0,0.00027671,2]
[314344942,1708207839961,-546.42,0.00027671,2]
[314344943,1708207839971,-500.0,0.00027671,2]
[314344944,1708207839980,-500.0,0.00027671,2]
[314344945,1708207839989,-1047.16,0.00027671,2]
[314344946,1708207839998,-1289.77,0.00027671,2]
[314344947,1708207840007,-500.0,0.00027671,2]
[314344948,1708207840016,-500.0,0.00027671,2]
[314344949,1708207840025,-3328.4,0.00027671,2]
[314344950,1708207840034,-3479.64,0.00027671,2]
[314344951,1708207840044,-500.0,0.00027671,2]
[314344952,1708207840053,-998.43,0.00027671,2]
[314344953,1708207840062,-5443.88,0.00027671,2]
[314344954,1708207840071,-500.0,0.00027671,2]
[314344955,1708207840080,-500.0,0.00027671,2]
[314344956,1708207840090,-516.6,0.00027671,2]
[314344957,1708207840099,-500.45,0.00027671,2]
[314344958,1708207840109,-507.25023719,0.00027671,2]
[314344960,1708207840118,-595.36,0.00027671,2]
[314344961,1708207840127,-1019.35,0.00027671,2]
[314344962,1708207840136,-500.0,0.00027671,2]
[314344963,1708207840145,-593.35,0.00027671,2]
[314344964,1708207840156,-557.34,0.00027671,2]
[314344965,1708207840165,-500.0,0.00027671,2]
[314344966,1708207840175,-656.43,0.00027671,2]
[314344967,1708207840184,-500.0,0.00027671,2]
[314344968,1708207840194,-500.0,0.00027671,2]
[314344969,1708207840204,-500.0,0.00027671,2]
[314344970,1708207840289,-841.0,0.00027671,2]
[314344971,1708207840299,-500.0,0.00027671,2]
[314344972,1708207840308,-621.386738,0.00027892,2]
[314344973,1708207840316,-500.0,0.00027945,2]
[314344974,1708207840337,-500.0,0.00027945,2]
[314344975,1708207840347,-500.0,0.00027945,2]
[314344976,1708207840356,-500.0,0.00027945,2]
[314344977,1708207840366,-167.23199005,0.00027945,2]
[314344978,1708207840376,-295.36967243,0.00027945,2]
[314344979,1708207840386,-198.19669351,0.00027945,2]
[314344980,1708207840395,-500.0,0.00027945,2]
[314344981,1708207840405,-849.74,0.00027945,2]
[314344982,1708207840415,-500.0,0.00027945,2]
[314344983,1708207840424,-500.0,0.00027945,2]
[314344984,1708207840433,-809.39,0.00027945,2]
[314344985,1708207840443,-500.0,0.00027945,2]
[314344986,1708207840452,-500.0,0.00027945,2]
[314344987,1708207840462,-500.0,0.00027945,2]
[314344988,1708207840472,-264.42650796,0.00027945,2]
[314344989,1708207840481,-512.52,0.00027945,2]
[314344990,1708207840491,-500.0,0.00027945,2]
[314344991,1708207840501,-270.22,0.00027945,2]
[314344992,1708207840510,-500.0,0.00027945,2]
[314344993,1708207840520,-500.0,0.00027945,2]
[314344994,1708207840530,-3100.22,0.00027945,2]
[314344995,1708207840539,-1099.02,0.00027945,2]
[314344996,1708207840549,-4380.24,0.00027945,2]
[314344997,1708207840558,-4876.39,0.00027945,2]
[314344998,1708207840568,-500.0,0.00027945,2]
[314344999,1708207840578,-500.0,0.00027945,2]
[314345000,1708207840588,-3135.63,0.00027945,2]
[314345001,1708207840598,-500.0,0.00027945,2]
[314345002,1708207840608,-500.0,0.00027945,2]
[314345003,1708207840617,-500.0,0.00027945,2]
[314345004,1708207840627,-500.0,0.00027945,2]
[314345005,1708207840637,-546.42,0.00027945,2]
[314345006,1708207840647,-500.0,0.00027945,2]
[314345007,1708207840657,-500.0,0.00027945,2]
[314345008,1708207840666,-1047.16,0.00027945,2]
[314345009,1708207840677,-1289.77,0.00027945,2]
[314345010,1708207840686,-500.0,0.00027945,2]
[314345011,1708207840696,-500.0,0.00027945,2]
[314345012,1708207840705,-3328.4,0.00027945,2]
[314345013,1708207840716,-3479.64,0.00027945,2]
[314345014,1708207840726,-500.0,0.00027945,2]
[314345015,1708207840735,-998.43,0.00027945,2]
[314345016,1708207840744,-5443.88,0.00027945,2]
[314345017,1708207840755,-500.0,0.00027945,2]
[314345018,1708207840764,-516.6,0.00027945,2]
[314345019,1708207840774,-500.45,0.00027945,2]
[314345020,1708207840784,-595.36,0.00027945,2]
[314345021,1708207840794,-1019.35,0.00027945,2]
[314345022,1708207840804,-500.0,0.00027945,2]
[314345023,1708207840813,-593.35,0.00027945,2]
[314345024,1708207840822,-557.34,0.00027945,2]
[314345025,1708207840832,-500.0,0.00027945,2]
[314345026,1708207840842,-656.43,0.00027945,2]
[314345027,1708207840851,-500.0,0.00027945,2]
[314345028,1708207840860,-500.0,0.00027945,2]
[314345029,1708207840870,-500.0,0.00027945,2]
[314345030,1708207840880,-841.0,0.00027945,2]
[314345031,1708207840889,-531.53967277,0.00028,2]
[314345032,1708207840899,-173.634003,0.00028134,2]
[314345033,1708207840909,-161.725876,0.00028134,2]
[314345034,1708207840918,-184.018939,0.00028134,2]
[314345035,1708207840928,-159.773238,0.00028134,2]
[314345036,1708207840937,-500.0,0.00028219,2]
[314345037,1708207840946,-410.34813149,0.00028219,2]
[314345038,1708207840956,-500.0,0.00028219,2]
[314345039,1708207840966,-500.0,0.00028219,2]
[314345040,1708207840975,-500.0,0.00028219,2]
[314345041,1708207840985,-849.74,0.00028219,2]
[314345043,1708207840994,-500.0,0.00028219,2]
[314345044,1708207841003,-500.0,0.00028219,2]
[314345045,1708207841013,-809.39,0.00028219,2]
[314345046,1708207841022,-500.0,0.00028219,2]
[314345047,1708207841032,-500.0,0.00028219,2]
[314345048,1708207841042,-500.0,0.00028219,2]
[314345049,1708207841052,-512.52,0.00028219,2]
[314345051,1708207841061,-500.0,0.00028219,2]
[314345052,1708207841070,-500.0,0.00028219,2]
[314345053,1708207841080,-3100.22,0.00028219,2]
[314345054,1708207841089,-1099.02,0.00028219,2]
[314345055,1708207841098,-4380.24,0.00028219,2]
[314345056,1708207841108,-4876.39,0.00028219,2]
[314345057,1708207841117,-500.0,0.00028219,2]
[314345058,1708207841127,-500.0,0.00028219,2]
[314345059,1708207841136,-3135.63,0.00028219,2]
[314345060,1708207841145,-500.0,0.00028219,2]
[314345061,1708207841157,-500.0,0.00028219,2]
[314345062,1708207841166,-500.0,0.00028219,2]
[314345063,1708207841176,-500.0,0.00028219,2]
[314345064,1708207841185,-546.42,0.00028219,2]
[314345065,1708207841194,-500.0,0.00028219,2]
[314345066,1708207841203,-500.0,0.00028219,2]
[314345067,1708207841213,-1047.16,0.00028219,2]
[314345068,1708207841223,-1289.77,0.00028219,2]
[314345069,1708207841234,-500.0,0.00028219,2]
[314345070,1708207841243,-500.0,0.00028219,2]
[314345071,1708207841252,-3328.4,0.00028219,2]
[314345072,1708207841261,-3479.64,0.00028219,2]
[314345073,1708207841271,-500.0,0.00028219,2]
[314345074,1708207841280,-998.43,0.00028219,2]
[314345075,1708207841289,-5443.88,0.00028219,2]
[314345076,1708207841299,-517.07370122,0.00028219,2]
[314345077,1708207841308,-516.6,0.00028219,2]
[314345078,1708207841318,-500.45,0.00028219,2]
[314345079,1708207841327,-595.36,0.00028219,2]
[314345080,1708207841336,-1019.35,0.00028219,2]
[314345081,1708207841346,-500.0,0.00028219,2]
[314345082,1708207841355,-593.35,0.00028219,2]
[314345083,1708207841365,-557.34,0.00028219,2]
[314345084,1708207841374,-500.0,0.00028219,2]
[314345085,1708207841384,-656.43,0.00028219,2]
[314345086,1708207841393,-500.0,0.00028219,2]
[314345087,1708207841403,-500.0,0.00028219,2]
[314345088,1708207841412,-500.0,0.00028219,2]
[314345089,1708207841421,-841.0,0.00028219,2]
[314345090,1708207841430,-182.98978461,0.00028241,4]
[314345091,1708207841439,-5226.55178465,0.00028492,5]
[314345092,1708207841449,-500.0,0.00028493,2]
[314345093,1708207841458,-500.0,0.00028493,2]
[314345094,1708207841468,-500.0,0.00028493,2]
[314345095,1708207841479,-219.0763038,0.00028493,2]
[314345096,1708207841489,-849.74,0.00028493,2]
[314345097,1708207841498,-500.0,0.00028493,2]
[314345098,1708207841507,-500.0,0.00028493,2]
[314345099,1708207841517,-809.39,0.00028493,2]
[314345100,1708207841526,-500.0,0.00028493,2]
[314345101,1708207841535,-500.0,0.00028493,2]
[314345102,1708207841544,-500.0,0.00028493,2]
[314345103,1708207841553,-512.52,0.00028493,2]
[314345104,1708207841562,-500.0,0.00028493,2]
[314345105,1708207841570,-500.0,0.00028493,2]
[314345106,1708207841580,-3100.22,0.00028493,2]
[314345107,1708207841589,-1099.02,0.00028493,2]
[314345108,1708207841598,-4380.24,0.00028493,2]
[314345109,1708207841607,-4876.39,0.00028493,2]
[314345110,1708207841616,-493.00244291,0.00028493,2]
[314345111,1708207841625,-500.0,0.00028493,2]
[314345112,1708207841634,-3135.63,0.00028493,2]
[314345113,1708207841643,-500.0,0.00028493,2]
[314345114,1708207841653,-500.0,0.00028493,2]
[314345115,1708207841662,-500.0,0.00028493,2]
[314345116,1708207841671,-500.0,0.00028493,2]
[314345117,1708207841681,-546.42,0.00028493,2]
[314345118,1708207841690,-500.0,0.00028493,2]
[314345119,1708207841699,-1047.16,0.00028493,2]
[314345120,1708207841708,-1289.77,0.00028493,2]
[314345121,1708207841717,-500.0,0.00028493,2]
[314345122,1708207841726,-500.0,0.00028493,2]
[314345123,1708207841736,-3328.4,0.00028493,2]
[314345124,1708207841744,-3479.64,0.00028493,2]
[314345125,1708207841754,-635.23390049,0.00028493,2]
[314345126,1708207841763,-998.43,0.00028493,2]
[314345127,1708207841772,-5443.88,0.00028493,2]
[314345128,1708207841782,-516.6,0.00028493,2]
[314345129,1708207841791,-500.45,0.00028493,2]
[314345130,1708207841800,-595.36,0.00028493,2]
[314345131,1708207841810,-1019.35,0.00028493,2]
[314345132,1708207841819,-500.0,0.00028493,2]
[314345133,1708207841828,-593.35,0.00028493,2]
[314345134,1708207841838,-557.34,0.00028493,2]
[314345135,1708207841847,-500.0,0.00028493,2]
[314345136,1708207841856,-656.43,0.00028493,2]
[314345137,1708207841866,-500.0,0.00028493,2]
[314345138,1708207841874,-201.60546379,0.00028493,2]
[314345139,1708207841884,-500.0,0.00028493,2]
[314345140,1708207841893,-841.0,0.00028493,2]
[314345141,1708207841902,-173.634003,0.00028603,2]
[314345142,1708207841912,-184.018939,0.00028603,2]
[314345143,1708207841921,-160.24275126,0.00028767,3]
[314345144,1708207841931,-500.0,0.00028767,2]
[314345145,1708207841940,-500.0,0.00028767,2]
[314345146,1708207841949,-500.0,0.00028767,2]
[314345147,1708207841959,-849.74,0.00028767,2]
[314345148,1708207841968,-500.0,0.00028767,2]
[314345149,1708207841977,-579.769935,0.00028767,2]
[314345150,1708207841987,-809.39,0.00028767,2]
[314345151,1708207841996,-500.0,0.00028767,2]
[314345152,1708207842006,-500.0,0.00028767,2]
[314345153,1708207842015,-444.8,0.00028767,2]
[314345154,1708207842025,-512.52,0.00028767,2]
[314345155,1708207842034,-539.16,0.00028767,2]
[314345156,1708207842043,-500.0,0.00028767,2]
[314345157,1708207842052,-3100.22,0.00028767,2]
[314345158,1708207842062,-1099.02,0.00028767,2]
[314345159,1708207842071,-4380.24,0.00028767,2]
[314345160,1708207842080,-4876.39,0.00028767,2]
[314345161,1708207842162,-500.0,0.00028767,2]
[314345162,1708207842172,-3135.63,0.00028767,2]
[314345163,1708207842181,-500.0,0.00028767,2]
[314345164,1708207842190,-500.0,0.00028767,2]
[314345165,1708207842199,-500.0,0.00028767,2]
[314345166,1708207842208,-546.42,0.00028767,2]
[314345167,1708207842216,-1047.16,0.00028767,2]
[314345168,1708207842225,-1289.77,0.00028767,2]
[314345169,1708207842234,-500.0,0.00028767,2]
[314345170,1708207842243,-500.0,0.00028767,2]
[314345171,1708207842253,-3328.4,0.00028767,2]
[314345172,1708207842262,-3479.64,0.00028767,2]
[314345173,1708207842271,-998.43,0.00028767,2]
[314345174,1708207842281,-5443.88,0.00028767,2]
[314345175,1708207842290,-155.0,0.00028767,2]
[314345176,1708207842299,-516.6,0.00028767,2]
[314345177,1708207842308,-500.45,0.00028767,2]
[314345179,1708207842317,-595.36,0.00028767,2]
[314345180,1708207842326,-1019.35,0.00028767,2]
[314345181,1708207842335,-500.0,0.00028767,2]
[314345182,1708207842344,-593.35,0.00028767,2]
[314345183,1708207842353,-557.34,0.00028767,2]
[314345185,1708207842362,-223.7581717,0.00028767,2]
[314345187,1708207842371,-656.43,0.00028767,2]
[314345188,1708207842380,-500.0,0.00028767,2]
[314345190,1708207842389,-841.0,0.00028767,2]
[314345191,1708207842399,-161.725876,0.00028838,2]
[314345192,1708207842407,-159.773238,0.00028838,2]
[314345193,1708207842416,-300.0,0.00028867,2]
[314345194,1708207842425,-1974.32885604,0.00029,7]
[314345195,1708207842434,-422.16862063,0.00029,2]
[314345196,1708207842443,-1000.0,0.00029,2]
[314345197,1708207842451,-183.11041211,0.00029041,2]
[314345198,1708207842460,-500.0,0.00029041,2]
[314345199,1708207842469,-458.0464762,0.00029041,2]
[314345200,1708207842478,-849.74,0.00029041,2]
[314345201,1708207842487,-500.0,0.00029041,2]
[314345202,1708207842496,-809.39,0.00029041,2]
[314345203,1708207842505,-500.0,0.00029041,2]
[314345204,1708207842514,-500.0,0.00029041,2]
[314345205,1708207842523,-512.52,0.00029041,2]
[314345206,1708207842532,-500.0,0.00029041,2]
[314345207,1708207842541,-3100.22,0.00029041,2]
[314345208,1708207842550,-1099.02,0.00029041,2]
[314345209,1708207842559,-4380.24,0.00029041,2]
[314345210,1708207842568,-4876.39,0.00029041,2]
[314345211,1708207842577,-500.0,0.00029041,2]
[314345212,1708207842586,-3135.63,0.00029041,2]
[314345213,1708207842595,-500.0,0.00029041,2]
[314345214,1708207842604,-209.56,0.00029041,2]
[314345215,1708207842613,-500.0,0.00029041,2]
[314345216,1708207842622,-546.42,0.00029041,2]
[314345217,1708207842632,-1047.16,0.00029041,2]
[314345218,1708207842642,-1289.77,0.00029041,2]
[314345219,1708207842651,-500.0,0.00029041,2]
[314345220,1708207842660,-500.0,0.00029041,2]
[314345221,1708207842669,-3328.4,0.00029041,2]
[314345222,1708207842678,-3479.64,0.00029041,2]
[314345223,1708207842687,-998.43,0.00029041,2]
[314345224,1708207842697,-5443.88,0.00029041,2]
[314345226,1708207842706,-516.6,0.00029041,2]
[314345228,1708207842715,-500.45,0.00029041,2]
[314345230,1708207842725,-595.36,0.00029041,2]